[Event "Queens Festival Europe 2022"]
[Site "Tornelo"]
[Date "2022.06.19"]
[Round "4.6"]
[White "Kanyamarala, Trisha"]
[Black "Smith, Olivia"]
[Result "1-0"]
[ECO "A52"]
[WhiteElo "2127"]
[BlackElo "2039"]
[Annotator "NA RC"]
[PlyCount "51"]
[EventDate "2022.06.19"]
[EventType "swiss"]
[EventCountry "NET"]
[SourceTitle "playchess.com"]
[Source "ChessBase"]
[SourceQuality "1"]
[TimeControl "180+2"]

1. d4 {[%emt 0:00:02]} Nf6 {[%emt 0:00:17]} 2. c4 {[%emt 0:00:06]} e5 {[%emt 0:00:02]} 3. dxe5 {[%emt 0:00:05]} Ng4 {[%emt 0:00:01]} 4. Bf4 {[%emt 0:00:03]} Nc6 {[%emt 0:00:07]} 5. Nf3 {[%emt 0:00:03]} Bb4+ {[%emt 0:00:02]} 6. Nbd2 {[%emt 0:00:03]} Qe7 {[%emt 0:00:05]} 7. e3 {[%emt 0:00:18]} Ngxe5 {[%emt 0:00:04]} 8. Be2 {[%emt 0:00:14]} Nxf3+ {[%emt 0:00:14]} 9. Bxf3 {[%emt 0:00:02]} Ne5 {[%emt 0:00:05]} 10. Be2 {[%emt 0:00:13]} Ng6 {[%emt 0:00:15]} 11. Bg3 {[%emt 0:00:09]} O-O {[%emt 0:00:06]} 12. O-O {[%emt 0:00:03]} Bd6 {[%emt 0:00:24]} 13. Bxd6 {[%emt 0:00:20]} Qxd6 {[%emt 0:00:03]} 14. Rc1 {[%emt 0:00:10]} Qe5 {[%emt 0:00:19]} 15. b4 {[%emt 0:00:16]} Nh4 {[%emt 0:00:19]} 16. Nf3 {[%emt 0:00:11]} Qe7 {[%emt 0:00:29]} 17. Nxh4 {[%emt 0:00:18]} Qxh4 {[%emt 0:00:02]} 18. Bf3 {[%emt 0:00:11]} a5 {[%emt 0:00:07]} 19. b5 {[%emt 0:00:06]} d6 {[%emt 0:00:18]} 20. c5 {[%emt 0:00:07]} dxc5 {[%emt 0:00:12]} 21. Rxc5 {[%emt 0:00:03]} Qe7 {[%emt 0:00:04]} 22. Qc2 {[%emt 0:00:05]} Be6 {[%emt 0:00:07]} 23. Rxc7 {[%emt 0:00:03]} Qh4 {[%emt 0:00:02]} 24. Bxb7 {[%emt 0:00:13]} Rad8 {[%emt 0:00:03]} 25. Bf3 {[%emt 0:00:07]} h6 {[%emt 0:00:02]} 26. b6 {[%emt 0:00:03]} 1-0

[Event "Queens Festival Europe 2022"]
[Site "Tornelo"]
[Date "2022.06.19"]
[Round "4.6"]
[White "Roy, Ali"]
[Black "Cassi, Elisa"]
[Result "1-0"]
[ECO "A07"]
[WhiteElo "1893"]
[BlackElo "1999"]
[Annotator "NA RC"]
[PlyCount "53"]
[EventDate "2022.06.19"]
[EventType "swiss"]
[EventCountry "NET"]
[SourceTitle "playchess.com"]
[Source "ChessBase"]
[SourceQuality "1"]
[TimeControl "180+2"]

1. Nf3 {[%emt 0:00:02]} d5 {[%emt 0:00:08]} 2. g3 {[%emt 0:00:03]} Nf6 {[%emt 0:00:03]} 3. Bg2 {[%emt 0:00:02]} c6 {[%emt 0:00:12]} 4. O-O {[%emt 0:00:02]} Bg4 {[%emt 0:00:05]} 5. d3 {[%emt 0:00:03]} Nbd7 {[%emt 0:00:04]} 6. Nbd2 {[%emt 0:00:04]} e6 {[%emt 0:00:02]} 7. e4 {[%emt 0:00:05]} Bd6 {[%emt 0:00:07]} 8. Qe1 {[%emt 0:00:04]} Qc7 {[%emt 0:00:09]} 9. b3 {[%emt 0:00:07]} O-O {[%emt 0:00:02]} 10. Bb2 {[%emt 0:00:02]} dxe4 {[%emt 0:00:10]} 11. dxe4 {[%emt 0:00:03]} e5 {[%emt 0:00:01]} 12. Nc4 {[%emt 0:00:03]} Rfe8 {[%emt 0:00:18]} 13. Nxd6 {[%emt 0:00:03]} Qxd6 {[%emt 0:00:01]} 14. c4 {[%emt 0:00:09]} Nc5 {[%emt 0:00:07]} 15. Rd1 {[%emt 0:00:07]} Qc7 {[%emt 0:00:05]} 16. h3 {[%emt 0:00:13]} Bh5 {[%emt 0:00:13]} 17. g4 {[%emt 0:00:03]} Bg6 {[%emt 0:00:01]} 18. Nxe5 {[%emt 0:00:28]} Rxe5 {[%emt 0:00:04]} 19. Bxe5 {[%emt 0:00:04]} Qxe5 {[%emt 0:00:01]} 20. f4 {[%emt 0:00:01]} Qb2 {[%emt 0:00:28]} 21. Rd2 {[%emt 0:00:10]} Qc3 {[%emt 0:00:09]} 22. Rd8+ {[%emt 0:00:18]} Rxd8 {[%emt 0:00:02]} 23. Qxc3 {[%emt 0:00:02]} Nfxe4 {[%emt 0:00:06]} 24. Qe5 {[%emt 0:00:14]} f6 {[%emt 0:00:15]} 25. Qc7 {[%emt 0:00:09]} Rd7 {[%emt 0:00:04]} 26. Qc8+ {[%emt 0:00:04]} Kf7 {[%emt 0:00:05]} 27. f5 {[%emt 0:00:02]} 1-0

[Event "Queens Festival Europe 2022"]
[Site "Tornelo"]
[Date "2022.06.19"]
[Round "4.6"]
[White "Pyun, Lindsay"]
[Black "Ahmadova, Minaya"]
[Result "1-0"]
[ECO "B13"]
[WhiteElo "1526"]
[BlackElo "1285"]
[Annotator "NA RC"]
[PlyCount "145"]
[EventDate "2022.06.19"]
[EventType "swiss"]
[EventCountry "NET"]
[SourceTitle "playchess.com"]
[Source "ChessBase"]
[SourceQuality "1"]
[TimeControl "180+2"]

1. e4 {[%emt 0:00:02]} c6 {[%emt 0:00:05]} 2. d4 {[%emt 0:00:03]} d5 {[%emt 0:00:01]} 3. exd5 {[%emt 0:00:00]} cxd5 {[%emt 0:00:02]} 4. Bd3 {[%emt 0:00:01]} g6 {[%emt 0:00:01]} 5. Nf3 {[%emt 0:00:03]} Bg7 {[%emt 0:00:01]} 6. c3 {[%emt 0:00:01]} Nf6 {[%emt 0:00:03]} 7. Bf4 {[%emt 0:00:02]} O-O {[%emt 0:00:02]} 8. h3 {[%emt 0:00:02]} Nc6 {[%emt 0:00:02]} 9. O-O {[%emt 0:00:02]} b6 {[%emt 0:00:16]} 10. Re1 {[%emt 0:00:05]} e6 {[%emt 0:00:03]} 11. Nbd2 {[%emt 0:00:03]} Bb7 {[%emt 0:00:02]} 12. Nf1 {[%emt 0:00:02]} Rc8 {[%emt 0:00:04]} 13. Qd2 {[%emt 0:00:01]} Re8 {[%emt 0:00:11]} 14. Bh6 {[%emt 0:00:02]} a6 {[%emt 0:00:07]} 15. Bxg7 {[%emt 0:00:03]} Kxg7 {[%emt 0:00:01]} 16. Ne5 {[%emt 0:00:12]} Qe7 {[%emt 0:00:13]} 17. Nh2 {[%emt 0:00:15]} Nd7 {[%emt 0:00:03]} 18. Nhf3 {[%emt 0:00:03]} Ndxe5 {[%emt 0:00:02]} 19. Nxe5 {[%emt 0:00:02]} Nxe5 {[%emt 0:00:01]} 20. Rxe5 {[%emt 0:00:02]} b5 {[%emt 0:00:02]} 21. a4 {[%emt 0:00:11]} Bc6 {[%emt 0:00:04]} 22. axb5 {[%emt 0:00:04]} Bxb5 {[%emt 0:00:02]} 23. Ree1 {[%emt 0:00:02]} Ra8 {[%emt 0:00:05]} 24. Ra2 {[%emt 0:00:06]} Qb7 {[%emt 0:00:03]} 25. Rea1 {[%emt 0:00:03]} Bxd3 {[%emt 0:00:05]} 26. Qxd3 {[%emt 0:00:01]} Rec8 {[%emt 0:00:04]} 27. Rxa6 {[%emt 0:00:11]} Rxa6 {[%emt 0:00:16]} 28. Qxa6 {[%emt 0:00:17]} Qc7 {[%emt 0:00:12]} 29. Qa7 {[%emt 0:00:05]} Qd6 {[%emt 0:00:03]} 30. Qa6 {[%emt 0:00:07]} Qd7 {[%emt 0:00:07]} 31. Qa4 {[%emt 0:00:09]} Qd6 {[%emt 0:00:03]} 32. Rc1 {[%emt 0:00:07]} Rb8 {[%emt 0:00:04]} 33. b4 {[%emt 0:00:03]} Rc8 {[%emt 0:00:08]} 34. Qb3 {[%emt 0:00:02]} Qf4 {[%emt 0:00:06]} 35. Ra1 {[%emt 0:00:04]} Qd6 {[%emt 0:00:06]} 36. b5 {[%emt 0:00:01]} Rb8 {[%emt 0:00:04]} 37. Ra6 {[%emt 0:00:06]} Qf4 {[%emt 0:00:03]} 38. g3 {[%emt 0:00:11]} Qc1+ {[%emt 0:00:07]} 39. Kg2 {[%emt 0:00:03]} Qe1 {[%emt 0:00:04]} 40. c4 {[%emt 0:00:16]} Qe4+ {[%emt 0:00:06]} 41. Kg1 {[%emt 0:00:06]} Qxd4 {[%emt 0:00:03]} 42. cxd5 {[%emt 0:00:02]} Qxd5 {[%emt 0:00:05]} 43. Qxd5 {[%emt 0:00:05]} exd5 {[%emt 0:00:01]} 44. b6 {[%emt 0:00:05]} Kf6 {[%emt 0:00:04]} 45. Kf1 {[%emt 0:00:02]} Ke7 {[%emt 0:00:02]} 46. Ke2 {[%emt 0:00:01]} Kd6 {[%emt 0:00:02]} 47. b7+ {[%emt 0:00:07]} Kc7 {[%emt 0:00:04]} 48. Rf6 {[%emt 0:00:03]} Rf8 {[%emt 0:00:07]} 49. Kd3 {[%emt 0:00:06]} Kxb7 {[%emt 0:00:10]} 50. Kd4 {[%emt 0:00:01]} h5 {[%emt 0:00:04]} 51. Kxd5 {[%emt 0:00:02]} Rd8+ {[%emt 0:00:02]} 52. Ke5 {[%emt 0:00:02]} Re8+ {[%emt 0:00:02]} 53. Kf4 {[%emt 0:00:02]} Re7 {[%emt 0:00:01]} 54. Kg5 {[%emt 0:00:02]} Kc7 {[%emt 0:00:04]} 55. Kh6 {[%emt 0:00:03]} Kd7 {[%emt 0:00:03]} 56. Kg7 {[%emt 0:00:05]} Ke8 {[%emt 0:00:03]} 57. g4 {[%emt 0:00:04]} hxg4 {[%emt 0:00:03]} 58. hxg4 {[%emt 0:00:02]} Rd7 {[%emt 0:00:09]} 59. Kh6 {[%emt 0:00:05]} Re7 {[%emt 0:00:02]} 60. g5 {[%emt 0:00:01]} Re5 {[%emt 0:00:05]} 61. f4 {[%emt 0:00:07]} Re7 {[%emt 0:00:03]} 62. Kg7 {[%emt 0:00:01]} Rd7 {[%emt 0:00:03]} 63. Ra6 {[%emt 0:00:05]} Ke7 {[%emt 0:00:03]} 64. Rf6 {[%emt 0:00:04]} Ke8 {[%emt 0:00:02]} 65. Rb6 {[%emt 0:00:02]} Ke7 {[%emt 0:00:01]} 66. Rb4 {[%emt 0:00:02]} Rd6 {[%emt 0:00:07]} 67. Re4+ {[%emt 0:00:03]} Re6 {[%emt 0:00:05]} 68. Rb4 {[%emt 0:00:03]} Ke8 {[%emt 0:00:09]} 69. Rb8+ {[%emt 0:00:03]} Ke7 {[%emt 0:00:01]} 70. Rb7+ {[%emt 0:00:02]} Ke8 {[%emt 0:00:05]} 71. Rxf7 {[%emt 0:00:02]} Re4 {[%emt 0:00:09]} 72. Rf6 {[%emt 0:00:04]} Re7+ {[%emt 0:00:04]} 73. Kxg6 {[%emt 0:00:02]} 1-0

[Event "Queens Festival Europe 2022"]
[Site "Tornelo"]
[Date "2022.06.19"]
[Round "4.7"]
[White "Steffensen, Elena"]
[Black "Tsakona, Maria"]
[Result "0-1"]
[ECO "B11"]
[WhiteElo "2044"]
[BlackElo "2007"]
[Annotator "NA RC"]
[PlyCount "94"]
[EventDate "2022.06.19"]
[EventType "swiss"]
[EventCountry "NET"]
[SourceTitle "playchess.com"]
[Source "ChessBase"]
[SourceQuality "1"]
[TimeControl "180+2"]

1. e4 {[%emt 0:00:02]} c6 {[%emt 0:00:04]} 2. Nc3 {[%emt 0:00:04]} d5 {[%emt 0:00:02]} 3. Nf3 {[%emt 0:00:01]} Bg4 {[%emt 0:00:02]} 4. h3 {[%emt 0:00:07]} Bxf3 {[%emt 0:00:02]} 5. Qxf3 {[%emt 0:00:02]} e6 {[%emt 0:00:00]} 6. d3 {[%emt 0:00:14]} Nf6 {[%emt 0:00:02]} 7. Bg5 {[%emt 0:00:03]} Bb4 {[%emt 0:00:36]} 8. e5 {[%emt 0:00:05]} h6 {[%emt 0:00:13]} 9. exf6 {[%emt 0:00:06]} hxg5 {[%emt 0:00:00]} 10. fxg7 {[%emt 0:00:02]} Rg8 {[%emt 0:00:01]} 11. Qg4 {[%emt 0:00:11]} d4 {[%emt 0:00:05]} 12. a3 {[%emt 0:00:05]} Qa5 {[%emt 0:00:58]} 13. Qxd4 {[%emt 0:00:03]} c5 {[%emt 0:00:01]} 14. Qc4 {[%emt 0:00:09]} b5 {[%emt 0:00:22]} 15. Qb3 {[%emt 0:00:16]} Nc6 {[%emt 0:00:03]} 16. O-O-O {[%emt 0:00:28]} Nd4 {[%emt 0:00:08]} 17. Qa2 {[%emt 0:00:01]} Bxc3 {[%emt 0:00:07]} 18. bxc3 {[%emt 0:00:03]} Qxc3 {[%emt 0:00:00]} 19. Qb2 {[%emt 0:00:06]} Qa5 {[%emt 0:00:06]} 20. c3 {[%emt 0:00:05]} Nc6 {[%emt 0:00:15]} 21. d4 {[%emt 0:00:01]} c4 {[%emt 0:00:17]} 22. d5 {[%emt 0:00:06]} Ne5 {[%emt 0:00:13]} 23. dxe6 {[%emt 0:00:04]} fxe6 {[%emt 0:00:00]} 24. Re1 {[%emt 0:00:12]} Nd7 {[%emt 0:00:10]} 25. Rxe6+ {[%emt 0:00:06]} Kf7 {[%emt 0:00:01]} 26. Rd6 {[%emt 0:00:04]} Nc5 {[%emt 0:00:02]} 27. Rd5 {[%emt 0:00:13]} Nb3+ {[%emt 0:00:01]} 28. Kb1 {[%emt 0:00:03]} Rad8 {[%emt 0:00:05]} 29. Bxc4 {[%emt 0:00:06]} bxc4 {[%emt 0:00:02]} 30. Rxa5 {[%emt 0:00:02]} Nxa5 {[%emt 0:00:01]} 31. Ka2 {[%emt 0:00:06]} Nb3 {[%emt 0:00:02]} 32. Re1 {[%emt 0:00:07]} Rd2 {[%emt 0:00:01]} 33. Re4 {[%emt 0:00:06]} Rxb2+ {[%emt 0:00:02]} 34. Kxb2 {[%emt 0:00:02]} Rxg7 {[%emt 0:00:01]} 35. Rxc4 {[%emt 0:00:02]} Na5 {[%emt 0:00:01]} 36. Rc5 {[%emt 0:00:06]} Nb7 {[%emt 0:00:03]} 37. Rc7+ {[%emt 0:00:03]} Kf6 {[%emt 0:00:01]} 38. Rc6+ {[%emt 0:00:03]} Ke5 {[%emt 0:00:02]} 39. Ra6 {[%emt 0:00:12]} Nc5 {[%emt 0:00:02]} 40. Ra5 {[%emt 0:00:02]} Kd5 {[%emt 0:00:01]} 41. Kc2 {[%emt 0:00:04]} Kc4 {[%emt 0:00:02]} 42. g3 {[%emt 0:00:11]} Re7 {[%emt 0:00:01]} 43. f4 {[%emt 0:00:03]} Re2+ {[%emt 0:00:01]} 44. Kd1 {[%emt 0:00:03]} Rg2 {[%emt 0:00:04]} 45. Rxa7 {[%emt 0:00:03]} gxf4 {[%emt 0:00:03]} 46. gxf4 {[%emt 0:00:04]} Kd3 {[%emt 0:00:05]} 47. Ke1 {[%emt 0:00:06]} Ne4 {[%emt 0:00:01]} 0-1

[Event "Queens Festival Europe 2022"]
[Site "Tornelo"]
[Date "2022.06.19"]
[Round "4.7"]
[White "Shabanaj, Eglantina"]
[Black "Arora, Tashika"]
[Result "1-0"]
[ECO "A07"]
[WhiteElo "1986"]
[BlackElo "1822"]
[Annotator "NA RC"]
[PlyCount "85"]
[EventDate "2022.06.19"]
[EventType "swiss"]
[EventCountry "NET"]
[SourceTitle "playchess.com"]
[Source "ChessBase"]
[SourceQuality "1"]
[TimeControl "180+2"]

1. Nf3 {[%emt 0:00:02]} d5 {[%emt 0:00:04]} 2. g3 {[%emt 0:00:03]} Nf6 {[%emt 0:00:02]} 3. Bg2 {[%emt 0:00:03]} e6 {[%emt 0:00:03]} 4. d3 {[%emt 0:00:01]} Be7 {[%emt 0:00:01]} 5. c3 {[%emt 0:00:02]} O-O {[%emt 0:00:02]} 6. Nbd2 {[%emt 0:00:02]} b6 {[%emt 0:00:02]} 7. Qc2 {[%emt 0:00:02]} Bb7 {[%emt 0:00:02]} 8. O-O {[%emt 0:00:02]} c5 {[%emt 0:00:02]} 9. Re1 {[%emt 0:00:02]} Nc6 {[%emt 0:00:02]} 10. e4 {[%emt 0:00:03]} Rc8 {[%emt 0:00:09]} 11. Nf1 {[%emt 0:00:12]} d4 {[%emt 0:00:06]} 12. Bg5 {[%emt 0:00:05]} h6 {[%emt 0:00:04]} 13. Bxf6 {[%emt 0:00:02]} Bxf6 {[%emt 0:00:02]} 14. e5 {[%emt 0:00:05]} Be7 {[%emt 0:00:02]} 15. N3d2 {[%emt 0:00:06]} b5 {[%emt 0:00:07]} 16. a3 {[%emt 0:00:05]} a6 {[%emt 0:00:03]} 17. Ne4 {[%emt 0:00:08]} Qc7 {[%emt 0:00:21]} 18. f4 {[%emt 0:00:06]} Rfd8 {[%emt 0:00:11]} 19. Rad1 {[%emt 0:00:06]} Bf8 {[%emt 0:00:04]} 20. g4 {[%emt 0:00:06]} Ne7 {[%emt 0:00:07]} 21. Nfg3 {[%emt 0:00:04]} Nd5 {[%emt 0:00:04]} 22. Qf2 {[%emt 0:00:26]} dxc3 {[%emt 0:00:06]} 23. bxc3 {[%emt 0:00:03]} c4 {[%emt 0:00:04]} 24. d4 {[%emt 0:00:03]} Bxa3 {[%emt 0:00:04]} 25. f5 {[%emt 0:00:04]} exf5 {[%emt 0:00:06]} 26. Nxf5 {[%emt 0:00:05]} Ne7 {[%emt 0:00:08]} 27. Nfd6 {[%emt 0:00:08]} Bxe4 {[%emt 0:00:12]} 28. Qxf7+ {[%emt 0:00:08]} Kh8 {[%emt 0:00:03]} 29. Rxe4 {[%emt 0:00:07]} Bxd6 {[%emt 0:00:05]} 30. exd6 {[%emt 0:00:04]} Qxd6 {[%emt 0:00:06]} 31. Rxe7 {[%emt 0:00:03]} Rg8 {[%emt 0:00:03]} 32. Re6 {[%emt 0:00:12]} Qa3 {[%emt 0:00:07]} 33. Be4 {[%emt 0:00:03]} g6 {[%emt 0:00:39]} 34. Rxg6 {[%emt 0:00:06]} Rxg6 {[%emt 0:00:04]} 35. Qxg6 {[%emt 0:00:04]} Qe7 {[%emt 0:00:02]} 36. Qxh6+ {[%emt 0:00:03]} Kg8 {[%emt 0:00:03]} 37. Bd5+ {[%emt 0:00:04]} Qf7 {[%emt 0:00:05]} 38. Qg6+ {[%emt 0:00:05]} Kh8 {[%emt 0:00:04]} 39. Qxf7 {[%emt 0:00:03]} Rb8 {[%emt 0:00:09]} 40. Rf1 {[%emt 0:00:07]} Rc8 {[%emt 0:00:05]} 41. Qh5+ {[%emt 0:00:03]} Kg7 {[%emt 0:00:03]} 42. Rf7+ {[%emt 0:00:04]} Kg8 {[%emt 0:00:01]} 43. Qh7# {[%emt 0:00:03]} 1-0

[Event "Queens Festival Europe 2022"]
[Site "Tornelo"]
[Date "2022.06.19"]
[Round "4.7"]
[White "Thornton, Filipina"]
[Black "Egger, Stefanie"]
[Result "1-0"]
[ECO "B48"]
[WhiteElo "1660"]
[BlackElo "1700"]
[Annotator "NA RC"]
[PlyCount "103"]
[EventDate "2022.06.19"]
[EventType "swiss"]
[EventCountry "NET"]
[SourceTitle "playchess.com"]
[Source "ChessBase"]
[SourceQuality "1"]
[TimeControl "180+2"]

1. e4 {[%emt 0:00:02]} c5 {[%emt 0:00:11]} 2. Nf3 {[%emt 0:00:02]} Nc6 {[%emt 0:00:04]} 3. d4 {[%emt 0:00:02]} cxd4 {[%emt 0:00:04]} 4. Nxd4 {[%emt 0:00:01]} e6 {[%emt 0:00:02]} 5. Nc3 {[%emt 0:00:02]} Nf6 {[%emt 0:00:10]} 6. Be3 {[%emt 0:00:06]} Qc7 {[%emt 0:00:02]} 7. f3 {[%emt 0:00:02]} a6 {[%emt 0:00:02]} 8. Qd2 {[%emt 0:00:04]} Bb4 {[%emt 0:00:04]} 9. a3 {[%emt 0:00:03]} Be7 {[%emt 0:00:16]} 10. g4 {[%emt 0:00:07]} Nxd4 {[%emt 0:00:18]} 11. Bxd4 {[%emt 0:00:07]} e5 {[%emt 0:00:02]} 12. Be3 {[%emt 0:00:05]} b5 {[%emt 0:00:13]} 13. Nd5 {[%emt 0:00:10]} Nxd5 {[%emt 0:00:10]} 14. exd5 {[%emt 0:00:01]} d6 {[%emt 0:00:06]} 15. Bd3 {[%emt 0:00:06]} Bb7 {[%emt 0:00:03]} 16. Be4 {[%emt 0:00:06]} Rc8 {[%emt 0:00:05]} 17. c3 {[%emt 0:00:03]} Bh4+ {[%emt 0:00:06]} 18. Ke2 {[%emt 0:00:03]} Qc4+ {[%emt 0:00:04]} 19. Qd3 {[%emt 0:00:06]} h6 {[%emt 0:00:30]} 20. Qxc4 {[%emt 0:00:10]} bxc4 {[%emt 0:00:13]} 21. Bf2 {[%emt 0:00:07]} Bg5 {[%emt 0:00:03]} 22. Be3 {[%emt 0:00:03]} Ke7 {[%emt 0:00:10]} 23. h4 {[%emt 0:00:02]} Bxe3 {[%emt 0:00:10]} 24. Kxe3 {[%emt 0:00:03]} g6 {[%emt 0:00:02]} 25. f4 {[%emt 0:00:05]} Rc5 {[%emt 0:00:27]} 26. Rad1 {[%emt 0:00:08]} f5 {[%emt 0:00:07]} 27. gxf5 {[%emt 0:00:02]} gxf5 {[%emt 0:00:01]} 28. Bxf5 {[%emt 0:00:03]} Rxd5 {[%emt 0:00:01]} 29. Rxd5 {[%emt 0:00:11]} Bxd5 {[%emt 0:00:02]} 30. Rd1 {[%emt 0:00:03]} Be6 {[%emt 0:00:03]} 31. Be4 {[%emt 0:00:08]} Rb8 {[%emt 0:00:03]} 32. Rd2 {[%emt 0:00:04]} exf4+ {[%emt 0:00:02]} 33. Kxf4 {[%emt 0:00:02]} d5 {[%emt 0:00:02]} 34. Bg6 {[%emt 0:00:04]} Kd6 {[%emt 0:00:02]} 35. h5 {[%emt 0:00:02]} Rf8+ {[%emt 0:00:07]} 36. Ke3 {[%emt 0:00:03]} Bf5 {[%emt 0:00:03]} 37. Kd4 {[%emt 0:00:05]} Bxg6 {[%emt 0:00:02]} 38. hxg6 {[%emt 0:00:02]} Rg8 {[%emt 0:00:01]} 39. Rg2 {[%emt 0:00:02]} h5 {[%emt 0:00:02]} 40. g7 {[%emt 0:00:05]} h4 {[%emt 0:00:04]} 41. Rg6+ {[%emt 0:00:05]} Kd7 {[%emt 0:00:02]} 42. Kxd5 {[%emt 0:00:06]} h3 {[%emt 0:00:03]} 43. Kxc4 {[%emt 0:00:13]} h2 {[%emt 0:00:01]} 44. Rh6 {[%emt 0:00:03]} Rxg7 {[%emt 0:00:01]} 45. Rxh2 {[%emt 0:00:02]} Rg6 {[%emt 0:00:01]} 46. Rh7+ {[%emt 0:00:04]} Kc6 {[%emt 0:00:03]} 47. b4 {[%emt 0:00:04]} Kb6 {[%emt 0:00:02]} 48. a4 {[%emt 0:00:03]} Kc6 {[%emt 0:00:02]} 49. a5 {[%emt 0:00:05]} Rg4+ {[%emt 0:00:02]} 50. Kb3 {[%emt 0:00:03]} Rg3 {[%emt 0:00:03]} 51. Rh6+ {[%emt 0:00:04]} Kb5 {[%emt 0:00:02]} 52. Rb6# {[%emt 0:00:03]} 1-0

[Event "Queens Festival Europe 2022"]
[Site "Tornelo"]
[Date "2022.06.19"]
[Round "4.7"]
[White "Helgadottir, Idunn"]
[Black "Tani, Selina"]
[Result "1-0"]
[ECO "D05"]
[WhiteElo "1570"]
[BlackElo "1146"]
[Annotator "NA RC"]
[PlyCount "31"]
[EventDate "2022.06.19"]
[EventType "swiss"]
[EventCountry "NET"]
[SourceTitle "playchess.com"]
[Source "ChessBase"]
[SourceQuality "1"]
[TimeControl "180+2"]

1. d4 {[%emt 0:00:02]} d5 {[%emt 0:00:05]} 2. Nf3 {[%emt 0:00:04]} e6 {[%emt 0:00:02]} 3. e3 {[%emt 0:00:05]} c5 {[%emt 0:00:02]} 4. b3 {[%emt 0:00:03]} Nf6 {[%emt 0:00:03]} 5. Bd3 {[%emt 0:00:02]} Nc6 {[%emt 0:00:03]} 6. a3 {[%emt 0:00:02]} Bd7 {[%emt 0:00:02]} 7. Bb2 {[%emt 0:00:03]} Be7 {[%emt 0:00:02]} 8. Nbd2 {[%emt 0:00:02]} O-O {[%emt 0:00:03]} 9. O-O {[%emt 0:00:02]} a6 {[%emt 0:00:10]} 10. Ne5 {[%emt 0:00:05]} Nxe5 {[%emt 0:00:11]} 11. dxe5 {[%emt 0:00:02]} Ne8 {[%emt 0:00:04]} 12. f4 {[%emt 0:00:03]} f6 {[%emt 0:00:08]} 13. Qh5 {[%emt 0:00:09]} Nc7 {[%emt 0:00:10]} 14. Bxh7+ {[%emt 0:00:09]} Kh8 {[%emt 0:00:12]} 15. Bg6+ {[%emt 0:00:02]} Kg8 {[%emt 0:00:02]} 16. Qh7# {[%emt 0:00:02]} 1-0

[Event "Queens Festival Europe 2022"]
[Site "Tornelo"]
[Date "2022.06.19"]
[Round "4.8"]
[White "Maksimovic, Suzana"]
[Black "Ayzenberg, Alena"]
[Result "0-1"]
[ECO "E46"]
[WhiteElo "2145"]
[BlackElo "2016"]
[Annotator "NA RC"]
[PlyCount "60"]
[EventDate "2022.06.19"]
[EventType "swiss"]
[EventCountry "NET"]
[SourceTitle "playchess.com"]
[Source "ChessBase"]
[SourceQuality "1"]
[TimeControl "180+2"]

1. d4 {[%emt 0:00:02]} Nf6 {[%emt 0:00:05]} 2. c4 {[%emt 0:00:04]} e6 {[%emt 0:00:03]} 3. Nc3 {[%emt 0:00:03]} Bb4 {[%emt 0:00:02]} 4. e3 {[%emt 0:00:01]} c5 {[%emt 0:00:02]} 5. Nge2 {[%emt 0:00:02]} cxd4 {[%emt 0:00:05]} 6. exd4 {[%emt 0:00:04]} O-O {[%emt 0:00:06]} 7. a3 {[%emt 0:00:01]} Be7 {[%emt 0:00:08]} 8. Ng3 {[%emt 0:00:08]} d5 {[%emt 0:00:14]} 9. cxd5 {[%emt 0:00:09]} exd5 {[%emt 0:00:23]} 10. Bd3 {[%emt 0:00:08]} Nc6 {[%emt 0:00:12]} 11. Be3 {[%emt 0:00:05]} Na5 {[%emt 0:00:12]} 12. O-O {[%emt 0:00:11]} Nc4 {[%emt 0:00:05]} 13. Bc1 {[%emt 0:00:06]} Be6 {[%emt 0:00:20]} 14. Nf5 {[%emt 0:00:13]} Bxf5 {[%emt 0:00:10]} 15. Bxf5 {[%emt 0:00:03]} Nd6 {[%emt 0:00:03]} 16. f3 {[%emt 0:00:14]} Nxf5 {[%emt 0:00:03]} 17. Qd3 {[%emt 0:00:09]} Qd7 {[%emt 0:00:05]} 18. Re1 {[%emt 0:00:05]} Rfe8 {[%emt 0:00:07]} 19. Bg5 {[%emt 0:00:02]} h6 {[%emt 0:00:32]} 20. Bd2 {[%emt 0:00:13]} Rac8 {[%emt 0:00:08]} 21. Re5 {[%emt 0:00:06]} Nh4 {[%emt 0:00:30]} 22. Rae1 {[%emt 0:00:15]} Ng6 {[%emt 0:00:02]} 23. R5e2 {[%emt 0:00:47]} Bf8 {[%emt 0:00:01]} 24. h3 {[%emt 0:00:19]} Rxe2 {[%emt 0:00:03]} 25. Nxe2 {[%emt 0:00:03]} Re8 {[%emt 0:00:03]} 26. Rc1 {[%emt 0:00:02]} a6 {[%emt 0:00:02]} 27. Ng3 {[%emt 0:00:02]} Bd6 {[%emt 0:00:02]} 28. Nf5 {[%emt 0:00:02]} Bf4 {[%emt 0:00:03]} 29. Rc2 {[%emt 0:00:15]} Bxd2 {[%emt 0:00:02]} 30. Qxd2 {[%emt 0:00:01]} Qxf5 {[%emt 0:00:02]} 0-1

[Event "Queens Festival Europe 2022"]
[Site "Tornelo"]
[Date "2022.06.19"]
[Round "4.8"]
[White "Mdivani, Maka"]
[Black "Can, Isil"]
[Result "0-1"]
[ECO "C44"]
[WhiteElo "1901"]
[BlackElo "1901"]
[Annotator "NA RC"]
[PlyCount "58"]
[EventDate "2022.06.19"]
[EventType "swiss"]
[EventCountry "NET"]
[SourceTitle "playchess.com"]
[Source "ChessBase"]
[SourceQuality "1"]
[TimeControl "180+2"]

1. e4 {[%emt 0:00:02]} e5 {[%emt 0:00:05]} 2. Nf3 {[%emt 0:00:07]} Nc6 {[%emt 0:00:03]} 3. d3 {[%emt 0:00:04]} Nf6 {[%emt 0:00:09]} 4. c4 {[%emt 0:00:04]} Bc5 {[%emt 0:00:35]} 5. h3 {[%emt 0:00:07]} a5 {[%emt 0:00:09]} 6. Nc3 {[%emt 0:00:02]} d6 {[%emt 0:00:04]} 7. Bg5 {[%emt 0:00:03]} h6 {[%emt 0:00:03]} 8. Bh4 {[%emt 0:00:02]} Ne7 {[%emt 0:00:06]} 9. Be2 {[%emt 0:00:10]} c6 {[%emt 0:00:05]} 10. Qd2 {[%emt 0:00:14]} Ng6 {[%emt 0:00:02]} 11. Bg3 {[%emt 0:00:03]} Bd7 {[%emt 0:00:12]} 12. d4 {[%emt 0:00:04]} exd4 {[%emt 0:00:02]} 13. Nxd4 {[%emt 0:00:03]} O-O {[%emt 0:00:05]} 14. Rd1 {[%emt 0:00:06]} Qe7 {[%emt 0:00:03]} 15. Nf5 {[%emt 0:00:45]} Bxf5 {[%emt 0:00:49]} 16. exf5 {[%emt 0:00:07]} Ne5 {[%emt 0:00:01]} 17. O-O {[%emt 0:00:06]} Bb4 {[%emt 0:00:05]} 18. a3 {[%emt 0:00:07]} Ne4 {[%emt 0:00:02]} 19. Qe3 {[%emt 0:00:12]} Nxg3 {[%emt 0:00:22]} 20. Qxg3 {[%emt 0:00:05]} Bxc3 {[%emt 0:00:10]} 21. Qxc3 {[%emt 0:00:04]} Rad8 {[%emt 0:00:05]} 22. Rfe1 {[%emt 0:00:07]} Qf6 {[%emt 0:00:04]} 23. Qc2 {[%emt 0:00:10]} Rfe8 {[%emt 0:00:08]} 24. b4 {[%emt 0:00:35]} axb4 {[%emt 0:00:11]} 25. axb4 {[%emt 0:00:02]} Ra8 {[%emt 0:00:01]} 26. c5 {[%emt 0:00:09]} d5 {[%emt 0:00:03]} 27. f4 {[%emt 0:00:04]} Nd7 {[%emt 0:00:02]} 28. Bg4 {[%emt 0:00:05]} Rxe1+ {[%emt 0:00:08]} 29. Rxe1 {[%emt 0:00:03]} Qd4+ {[%emt 0:00:01]} 0-1